[Event "*** Titled Tuesday Blitz"]
[Site "Chess.com"]
[Date "2021.03.02"]
[Round "1"]
[White "FLamps8"]
[Black "GM4life"]
[Result "1-0"]
[WhiteElo "2652"]
[BlackElo "2340"]
[TimeControl "180+1"]
[EndTime "10:09:14 PST"]
[Termination "FLamps8 won by resignation"]

1. d4 {[%clk 0:03:00.9]} 1... Nf6 {[%clk 0:02:59.7]} 2. Bf4 {[%clk 0:03:01.3]}
2... d5 {[%clk 0:02:58.8]} 3. e3 {[%clk 0:03:01.7]} 3... c5 {[%clk 0:02:57.6]}
4. c3 {[%clk 0:03:01.5]} 4... Nc6 {[%clk 0:02:58.2]} 5. Nd2 {[%clk 0:02:59.5]}
5... Bf5 {[%clk 0:02:55.5]} 6. Qb3 {[%clk 0:02:58.1]} 6... Qc8 {[%clk 0:02:55]}
7. Ngf3 {[%clk 0:02:55.9]} 7... c4 {[%clk 0:02:55.1]} 8. Qd1 {[%clk 0:02:55]}
8... h6 {[%clk 0:02:55.1]} 9. Be2 {[%clk 0:02:50.9]} 9... e6 {[%clk 0:02:55.2]}
10. Ne5 {[%clk 0:02:51]} 10... Be7 {[%clk 0:02:53.9]} 11. O-O {[%clk 0:02:50.6]}
11... O-O {[%clk 0:02:54]} 12. Bf3 {[%clk 0:02:50.7]} 12... Nxe5 {[%clk
0:02:51.2]} 13. Bxe5 {[%clk 0:02:51.6]} 13... b5 {[%clk 0:02:48.7]} 14. Qe2
{[%clk 0:02:49.9]} 14... Bd3 {[%clk 0:02:40.1]} 15. Qd1 {[%clk 0:02:46.3]} 15...
Bxf1 {[%clk 0:02:40]} 16. Qxf1 {[%clk 0:02:46.6]} 16... a5 {[%clk 0:02:39.1]}
17. e4 {[%clk 0:02:46.7]} 17... Rd8 {[%clk 0:02:35.6]} 18. Re1 {[%clk
0:02:41.6]} 18... b4 {[%clk 0:02:33.2]} 19. g3 {[%clk 0:02:33.8]} 19... Ra6
{[%clk 0:02:10.9]} 20. Qg2 {[%clk 0:02:17.4]} 20... Qd7 {[%clk 0:02:01.3]} 21.
exd5 {[%clk 0:02:07]} 21... exd5 {[%clk 0:02:00.2]} 22. Nf1 {[%clk 0:02:06.3]}
22... bxc3 {[%clk 0:01:47.2]} 23. bxc3 {[%clk 0:02:07.2]} 23... Ng4 {[%clk
0:01:38.6]} 24. Bxg7 {[%clk 0:01:53.1]} 24... Kxg7 {[%clk 0:01:22.8]} 25. Bxg4
{[%clk 0:01:51.9]} 25... Qxg4 {[%clk 0:01:11.3]} 26. Rxe7 {[%clk 0:01:51.4]}
26... Re6 {[%clk 0:01:05.7]} 27. Ne3 {[%clk 0:01:47.1]} 27... Qe2 {[%clk
0:00:48.7]} 28. Rxe6 {[%clk 0:01:27.8]} 28... fxe6 {[%clk 0:00:48.3]} 29. Qh3
{[%clk 0:01:27.2]} 29... Qe1+ {[%clk 0:00:43.8]} 30. Kg2 {[%clk 0:01:26.9]}
30... Rf8 {[%clk 0:00:43.6]} 31. Qg4+ {[%clk 0:00:54.7]} 31... Kh7 {[%clk
0:00:42.7]} 32. Qxe6 {[%clk 0:00:50]} 32... Qxf2+ {[%clk 0:00:40.4]} 33. Kh3
{[%clk 0:00:50.5]} 33... Rf6 {[%clk 0:00:32.3]} 34. Qd7+ {[%clk 0:00:46.4]}
34... Rf7 {[%clk 0:00:32.4]} 35. Qxd5 {[%clk 0:00:44.3]} 35... Kg7 {[%clk
0:00:29.1]} 36. Qe5+ {[%clk 0:00:40.2]} 36... Kg8 {[%clk 0:00:27.1]} 37. Ng4
{[%clk 0:00:24.9]} 37... Qf1+ {[%clk 0:00:19.3]} 38. Kh4 {[%clk 0:00:25.2]}
38... Kh7 {[%clk 0:00:19.1]} 39. Qe6 {[%clk 0:00:17.3]} 39... h5 {[%clk
0:00:12.8]} 40. Qh6+ {[%clk 0:00:11.2]} 40... Kg8 {[%clk 0:00:12.7]} 41. Qg6+
{[%clk 0:00:10.9]} 41... Kf8 {[%clk 0:00:12.8]} 42. Qd6+ {[%clk 0:00:08.9]}
42... Ke8 {[%clk 0:00:11.9]} 43. Qe5+ {[%clk 0:00:08.9]} 43... Kf8 {[%clk
0:00:12]} 44. Qxh5 {[%clk 0:00:08.1]} 44... Qd3 {[%clk 0:00:09.1]} 45. Qh8+
{[%clk 0:00:07.8]} 45... Ke7 {[%clk 0:00:08.8]} 46. Qe5+ {[%clk 0:00:08.3]}
46... Kf8 {[%clk 0:00:08.8]} 47. Qd6+ {[%clk 0:00:08]} 47... Ke8 {[%clk
0:00:08.1]} 48. Qe6+ {[%clk 0:00:07.9]} 48... Kf8 {[%clk 0:00:08.3]} 49. Qh6+
{[%clk 0:00:07.9]} 49... Ke7 {[%clk 0:00:05.7]} 50. Qg5+ {[%clk 0:00:07.9]}
50... Kf8 {[%clk 0:00:05.9]} 51. Qc5+ {[%clk 0:00:05.1]} 51... Kg8 {[%clk
0:00:06]} 52. Nh6+ {[%clk 0:00:04.8]} 52... Kg7 {[%clk 0:00:05.6]} 53. Qg5+
{[%clk 0:00:04.4]} 53... Kf8 {[%clk 0:00:04.1]} 54. Nxf7 {[%clk 0:00:04.7]}
54... Kxf7 {[%clk 0:00:04.7]} 55. Qf4+ {[%clk 0:00:04.9]} 55... Ke7 {[%clk
0:00:04.8]} 56. Qg5+ {[%clk 0:00:05]} 56... Kd7 {[%clk 0:00:05.1]} 57. Qb5+
{[%clk 0:00:03.8]} 57... Kd6 {[%clk 0:00:04.7]} 58. Qb6+ {[%clk 0:00:04]} 58...
Kd7 {[%clk 0:00:04.9]} 59. Qb7+ {[%clk 0:00:03.2]} 59... Kd8 {[%clk 0:00:04.8]}
60. Qb6+ {[%clk 0:00:03.2]} 60... Ke8 {[%clk 0:00:05.1]} 61. Qe6+ {[%clk
0:00:03.1]} 61... Kf8 {[%clk 0:00:05.3]} 62. Qf6+ {[%clk 0:00:03.3]} 62... Ke8
{[%clk 0:00:05.6]} 63. Qh8+ {[%clk 0:00:02.6]} 63... Ke7 {[%clk 0:00:05.9]} 64.
Qe5+ {[%clk 0:00:02.9]} 64... Kf8 {[%clk 0:00:05.8]} 65. d5 {[%clk 0:00:03.4]}
65... Qh7+ {[%clk 0:00:04.9]} 66. Kg4 {[%clk 0:00:03.9]} 66... Qg6+ {[%clk
0:00:05]} 67. Kf4 {[%clk 0:00:04.3]} 67... Qh6+ {[%clk 0:00:04.5]} 68. Qg5
{[%clk 0:00:04.5]} 68... Qxh2 {[%clk 0:00:04.7]} 69. Qf5+ {[%clk 0:00:04.2]}
69... Ke8 {[%clk 0:00:04]} 70. Qe4+ {[%clk 0:00:04.3]} 70... Kf8 {[%clk
0:00:04.6]} 71. Qxc4 {[%clk 0:00:05.2]} 71... Qf2+ {[%clk 0:00:04.3]} 72. Ke4
{[%clk 0:00:05.5]} 72... Qe1+ {[%clk 0:00:03.8]} 73. Kd4 {[%clk 0:00:06]} 73...
Qf2+ {[%clk 0:00:03.1]} 74. Ke5 {[%clk 0:00:06.4]} 74... Qxg3+ {[%clk
0:00:03.4]} 75. Qf4+ {[%clk 0:00:06.5]} 75... Qxf4+ {[%clk 0:00:04.3]} 76. Kxf4
{[%clk 0:00:07.4]} 76... Ke7 {[%clk 0:00:04.4]} 77. Ke4 {[%clk 0:00:08.3]} 77...
Kd7 {[%clk 0:00:04.4]} 78. Kd4 {[%clk 0:00:09.2]} 78... a4 {[%clk 0:00:05.3]}
79. Kc4 {[%clk 0:00:10.1]} 79... a3 {[%clk 0:00:06.2]} 80. Kb4 {[%clk
0:00:10.2]} 80... Kd6 {[%clk 0:00:07.1]} 81. c4 {[%clk 0:00:10.9]} 81... Ke5
{[%clk 0:00:06.8]} 82. Kxa3 {[%clk 0:00:11.8]} 82... Kd6 {[%clk 0:00:07.7]} 83.
Kb4 {[%clk 0:00:12.2]} 83... Kc7 {[%clk 0:00:07.4]} 84. a4 {[%clk 0:00:13.1]}
84... Kb6 {[%clk 0:00:08.3]} 85. a5+ {[%clk 0:00:14]} 85... Ka6 {[%clk
0:00:08.8]} 86. d6 {[%clk 0:00:13.5]} 86... Kb7 {[%clk 0:00:09.7]} 87. d7 {[%clk
0:00:12.4]} 87... Kc6 {[%clk 0:00:10.6]} 88. a6 {[%clk 0:00:12.9]} 88... Kb6
{[%clk 0:00:10.8]} 89. d8=Q+ {[%clk 0:00:12.8]} 89... Kxa6 {[%clk 0:00:11.7]}
90. Qd6+ {[%clk 0:00:12.8]} 90... Kb7 {[%clk 0:00:12.6]} 91. Kb5 {[%clk
0:00:12.7]} 91... Ka8 {[%clk 0:00:12.8]} 92. Qe7 {[%clk 0:00:12.9]} 92... Kb8
{[%clk 0:00:13.1]} 93. Kb6 {[%clk 0:00:13.8]} 93... Ka8 {[%clk 0:00:14]} 1-0

[Event "*** Titled Tuesday Blitz"]
[Site "Chess.com"]
[Date "2021.03.02"]
[Round "1"]
[White "Niktlt"]
[Black "Fy_Rakotomaharo"]
[Result "0-1"]
[WhiteElo "2398"]
[BlackElo "2745"]
[TimeControl "180+1"]
[EndTime "10:09:17 PST"]
[Termination "Fy_Rakotomaharo won on time"]

1. c4 {[%clk 0:02:58.3]} 1... e5 {[%clk 0:02:59.1]} 2. Nc3 {[%clk 0:02:58]} 2...
Bb4 {[%clk 0:02:59.3]} 3. Nd5 {[%clk 0:02:56.8]} 3... a5 {[%clk 0:02:58.8]} 4.
g3 {[%clk 0:02:54.1]} 4... Nf6 {[%clk 0:02:50.9]} 5. Nxb4 {[%clk 0:02:53]} 5...
axb4 {[%clk 0:02:51.8]} 6. Bg2 {[%clk 0:02:52.7]} 6... O-O {[%clk 0:02:52]} 7.
Nf3 {[%clk 0:02:50.2]} 7... e4 {[%clk 0:02:49.1]} 8. Nd4 {[%clk 0:02:48.9]} 8...
Nc6 {[%clk 0:02:49.3]} 9. Nb3 {[%clk 0:02:48]} 9... d5 {[%clk 0:02:48.5]} 10.
cxd5 {[%clk 0:02:47.6]} 10... Qxd5 {[%clk 0:02:48.6]} 11. O-O {[%clk 0:02:46.8]}
11... Qh5 {[%clk 0:02:47.1]} 12. d3 {[%clk 0:02:38.1]} 12... Bh3 {[%clk
0:02:45.8]} 13. dxe4 {[%clk 0:02:34.6]} 13... Bxg2 {[%clk 0:02:32.4]} 14. Kxg2
{[%clk 0:02:34]} 14... Nxe4 {[%clk 0:02:33]} 15. Qc2 {[%clk 0:02:28.8]} 15...
Rfe8 {[%clk 0:02:28.5]} 16. f3 {[%clk 0:02:22.3]} 16... Nd6 {[%clk 0:02:22.2]}
17. Bf4 {[%clk 0:02:16.5]} 17... Nb5 {[%clk 0:02:03.9]} 18. e4 {[%clk 0:02:10]}
18... Nbd4 {[%clk 0:01:59.4]} 19. Nxd4 {[%clk 0:02:08.5]} 19... Nxd4 {[%clk
0:02:00.3]} 20. Qc4 {[%clk 0:02:07.2]} 20... Ne6 {[%clk 0:01:56.3]} 21. Be3
{[%clk 0:02:02.9]} 21... c5 {[%clk 0:01:55.3]} 22. Rad1 {[%clk 0:01:56.2]} 22...
b6 {[%clk 0:01:49.2]} 23. Rd5 {[%clk 0:01:51.2]} 23... Qg6 {[%clk 0:01:49.2]}
24. Rfd1 {[%clk 0:01:49.8]} 24... Qf6 {[%clk 0:01:49.4]} 25. R1d2 {[%clk
0:01:46.3]} 25... h6 {[%clk 0:01:43.3]} 26. Qb5 {[%clk 0:01:37.8]} 26... Rec8
{[%clk 0:01:32.4]} 27. e5 {[%clk 0:00:56.3]} 27... Qg6 {[%clk 0:01:24.8]} 28.
Qc4 {[%clk 0:00:48.7]} 28... b5 {[%clk 0:01:20.6]} 29. Qxb5 {[%clk 0:00:44.8]}
29... Nc7 {[%clk 0:01:20.7]} 30. Qxc5 {[%clk 0:00:35.9]} 30... Nxd5 {[%clk
0:01:21.2]} 31. Qxd5 {[%clk 0:00:36.8]} 31... Rab8 {[%clk 0:01:13.8]} 32. Bf2
{[%clk 0:00:25]} 32... Rc2 {[%clk 0:01:12.5]} 33. a4 {[%clk 0:00:20.3]} 33...
bxa3 {[%clk 0:01:00.5]} 34. bxa3 {[%clk 0:00:21.2]} 34... Rbb2 {[%clk
0:01:00.1]} 35. Rxc2 {[%clk 0:00:19.5]} 35... Qxc2 {[%clk 0:01:01]} 36. Qd4
{[%clk 0:00:17.5]} 36... Ra2 {[%clk 0:01:01]} 37. g4 {[%clk 0:00:13.4]} 37...
Kh7 {[%clk 0:00:57.2]} 38. h3 {[%clk 0:00:13.5]} 38... Rxa3 {[%clk 0:00:56]} 39.
Qf4 {[%clk 0:00:12.7]} 39... Ra2 {[%clk 0:00:49.4]} 40. Qe3 {[%clk 0:00:13.1]}
40... g5 {[%clk 0:00:46.6]} 41. Qd4 {[%clk 0:00:12.7]} 41... Qe2 {[%clk
0:00:44.9]} 42. Qc5 {[%clk 0:00:06.9]} 42... Rc2 {[%clk 0:00:43.6]} 43. Qa7
{[%clk 0:00:06.2]} 43... Kg7 {[%clk 0:00:41.2]} 44. Qd4 {[%clk 0:00:06.7]} 44...
Rd2 {[%clk 0:00:40.9]} 45. Qc5 {[%clk 0:00:04.9]} 45... Rd3 {[%clk 0:00:38.4]}
46. Qc6 {[%clk 0:00:04.2]} 46... Qxe5 {[%clk 0:00:33.2]} 47. Qc2 {[%clk
0:00:02.5]} 47... Qd5 {[%clk 0:00:30]} 48. Qb2+ {[%clk 0:00:03]} 48... Kh7
{[%clk 0:00:30]} 49. Qe2 {[%clk 0:00:03.9]} 49... Rd2 {[%clk 0:00:28.9]} 50. Qe3
{[%clk 0:00:04.2]} 50... Qd3 {[%clk 0:00:26.4]} 51. Qe7 {[%clk 0:00:03.8]} 51...
Qg6 {[%clk 0:00:24.4]} 52. Qe3 {[%clk 0:00:03.7]} 52... Rd3 {[%clk 0:00:24.5]}
53. Qe7 {[%clk 0:00:03.6]} 53... Qe6 {[%clk 0:00:22]} 54. Qb7 {[%clk 0:00:02.3]}
54... Qd5 {[%clk 0:00:22.1]} 55. Qxd5 {[%clk 0:00:01.4]} 55... Rxd5 {[%clk
0:00:23]} 56. h4 {[%clk 0:00:02.1]} 56... Rd2 {[%clk 0:00:22.3]} 57. hxg5 {[%clk
0:00:02.4]} 57... hxg5 {[%clk 0:00:22.5]} 58. Kg3 {[%clk 0:00:03.3]} 58... Kg6
{[%clk 0:00:22.6]} 59. Be3 {[%clk 0:00:03.6]} 59... Rd3 {[%clk 0:00:23.2]} 60.
Kf2 {[%clk 0:00:04.1]} 60... Ra3 {[%clk 0:00:23]} 61. f4 {[%clk 0:00:04.5]}
61... gxf4 {[%clk 0:00:20.3]} 62. Bxf4 {[%clk 0:00:05.4]} 62... Kf6 {[%clk
0:00:20.7]} 63. Ke2 {[%clk 0:00:05.9]} 63... Ke6 {[%clk 0:00:21]} 64. Be3 {[%clk
0:00:05.7]} 64... Kd5 {[%clk 0:00:21.1]} 65. Kf3 {[%clk 0:00:06.1]} 65... Rb3
{[%clk 0:00:20.6]} 66. Kf4 {[%clk 0:00:06.5]} 66... Rb4+ {[%clk 0:00:20.4]} 67.
Kf5 {[%clk 0:00:07]} 67... Rb1 {[%clk 0:00:19.8]} 68. Bf4 {[%clk 0:00:05]} 68...
Rf1 {[%clk 0:00:20]} 69. Kg5 {[%clk 0:00:02.4]} 69... Ke4 {[%clk 0:00:19.7]} 70.
Bc7 {[%clk 0:00:03.3]} 70... Kf3 {[%clk 0:00:18.9]} 71. Be5 {[%clk 0:00:01.9]}
71... Kg2 {[%clk 0:00:18.7]} 72. Bf6 {[%clk 0:00:01.8]} 72... Kh3 {[%clk
0:00:18.7]} 73. Be5 {[%clk 0:00:02.4]} 73... Rd1 {[%clk 0:00:14.5]} 74. Bf4
{[%clk 0:00:02]} 74... Rd5+ {[%clk 0:00:13.2]} 75. Kf6 {[%clk 0:00:02.6]} 75...
Kxg4 {[%clk 0:00:13.5]} 76. Be3 {[%clk 0:00:03.2]} 76... Rf5+ {[%clk 0:00:14]}
77. Kg7 {[%clk 0:00:02.8]} 77... Kf3 {[%clk 0:00:13.1]} 78. Bd4 {[%clk
0:00:02.9]} 78... Ke4 {[%clk 0:00:11.9]} 79. Bf6 {[%clk 0:00:03.1]} 79... Kd5
{[%clk 0:00:11]} 80. Kxf7 {[%clk 0:00:03.5]} 80... Rf3 {[%clk 0:00:11.5]} 81.
Kg6 {[%clk 0:00:02.4]} 81... Ke6 {[%clk 0:00:12.4]} 82. Bg5 {[%clk 0:00:02]}
82... Rg3 {[%clk 0:00:12.8]} 0-1

[Event "*** Titled Tuesday Blitz"]
[Site "Chess.com"]
[Date "2021.03.02"]
[Round "1"]
[White "DinaBelenkaya"]
[Black "Mr_Sinigami"]
[Result "0-1"]
[WhiteElo "2307"]
[BlackElo "2611"]
[TimeControl "180+1"]
[EndTime "10:09:36 PST"]
[Termination "Mr_Sinigami won by checkmate"]

1. e4 {[%clk 0:02:56.3]} 1... d5 {[%clk 0:02:59.3]} 2. exd5 {[%clk 0:02:53.5]}
2... Nf6 {[%clk 0:02:59.9]} 3. Nf3 {[%clk 0:02:54.2]} 3... Nxd5 {[%clk
0:02:59.8]} 4. d4 {[%clk 0:02:53.9]} 4... g6 {[%clk 0:02:59.7]} 5. c4 {[%clk
0:02:53.5]} 5... Nb6 {[%clk 0:02:59.7]} 6. c5 {[%clk 0:02:40.6]} 6... Nd5 {[%clk
0:02:59.1]} 7. Bc4 {[%clk 0:02:35.2]} 7... Bg7 {[%clk 0:02:58.4]} 8. O-O {[%clk
0:02:32.6]} 8... O-O {[%clk 0:02:57.8]} 9. h3 {[%clk 0:02:32.2]} 9... b6 {[%clk
0:02:51.6]} 10. Na3 {[%clk 0:02:21.7]} 10... Bb7 {[%clk 0:02:35]} 11. Qe2 {[%clk
0:02:12.2]} 11... Nc6 {[%clk 0:02:26.6]} 12. Rd1 {[%clk 0:02:09.8]} 12... h6
{[%clk 0:02:18.1]} 13. Nc2 {[%clk 0:01:37.9]} 13... e6 {[%clk 0:02:14.1]} 14.
Bd2 {[%clk 0:01:25.8]} 14... bxc5 {[%clk 0:01:50.4]} 15. dxc5 {[%clk 0:01:26.7]}
15... Qe7 {[%clk 0:01:49.6]} 16. Bxd5 {[%clk 0:01:13.9]} 16... exd5 {[%clk
0:01:48.2]} 17. Qxe7 {[%clk 0:01:13.2]} 17... Nxe7 {[%clk 0:01:48]} 18. Ncd4
{[%clk 0:01:14.1]} 18... Rfe8 {[%clk 0:01:27.5]} 19. Be3 {[%clk 0:01:10.2]}
19... Rab8 {[%clk 0:01:21.9]} 20. Rab1 {[%clk 0:01:08.3]} 20... Bc8 {[%clk
0:01:13.1]} 21. b4 {[%clk 0:01:06.2]} 21... Bf5 {[%clk 0:00:57.3]} 22. Rb3
{[%clk 0:00:53.3]} 22... c6 {[%clk 0:00:55.1]} 23. a4 {[%clk 0:00:43.3]} 23...
a6 {[%clk 0:00:50.5]} 24. Kf1 {[%clk 0:00:24.6]} 24... Be4 {[%clk 0:00:48.7]}
25. g4 {[%clk 0:00:19.2]} 25... Rec8 {[%clk 0:00:47.5]} 26. Nd2 {[%clk
0:00:19.2]} 26... Bxd4 {[%clk 0:00:45.3]} 27. Bxd4 {[%clk 0:00:19.3]} 27... Bc2
{[%clk 0:00:45]} 28. Rdb1 {[%clk 0:00:16]} 28... Bxb3 {[%clk 0:00:43]} 29. Rxb3
{[%clk 0:00:16.6]} 29... Re8 {[%clk 0:00:39.8]} 30. Be5 {[%clk 0:00:16.7]} 30...
Rb7 {[%clk 0:00:39.3]} 31. f4 {[%clk 0:00:15.2]} 31... g5 {[%clk 0:00:37.1]} 32.
Nf3 {[%clk 0:00:14.8]} 32... Ng6 {[%clk 0:00:35.7]} 33. Bd6 {[%clk 0:00:10.7]}
33... Nxf4 {[%clk 0:00:28.5]} 34. Nd4 {[%clk 0:00:11.4]} 34... Rc8 {[%clk
0:00:24.8]} 35. Nf5 {[%clk 0:00:10.8]} 35... Kh7 {[%clk 0:00:24.5]} 36. Ne7
{[%clk 0:00:10.7]} 36... Rxe7 {[%clk 0:00:22.3]} 37. Bxe7 {[%clk 0:00:11.6]}
37... Re8 {[%clk 0:00:20.9]} 38. Bd6 {[%clk 0:00:11.5]} 38... Ne2 {[%clk
0:00:19.3]} 39. Rb2 {[%clk 0:00:07.4]} 39... Nd4 {[%clk 0:00:18]} 40. Rd2 {[%clk
0:00:07.6]} 40... Ne6 {[%clk 0:00:16.1]} 41. Rf2 {[%clk 0:00:07.9]} 41... Kg6
{[%clk 0:00:13.9]} 42. Kg2 {[%clk 0:00:07.9]} 42... f6 {[%clk 0:00:13.5]} 43.
Rf3 {[%clk 0:00:07.1]} 43... Rd8 {[%clk 0:00:13]} 44. Rf1 {[%clk 0:00:07.2]}
44... Rd7 {[%clk 0:00:12.7]} 45. Rb1 {[%clk 0:00:07.3]} 45... Rb7 {[%clk
0:00:12.7]} 46. Kf2 {[%clk 0:00:05.7]} 46... Nd4 {[%clk 0:00:12.6]} 47. Ke3
{[%clk 0:00:05.6]} 47... Rxb4 {[%clk 0:00:10.8]} 48. Rxb4 {[%clk 0:00:04]} 48...
Nc2+ {[%clk 0:00:10.8]} 49. Kd2 {[%clk 0:00:04.6]} 49... Nxb4 {[%clk 0:00:10.7]}
50. Kc3 {[%clk 0:00:05.3]} 50... Na2+ {[%clk 0:00:09.9]} 51. Kc2 {[%clk
0:00:04]} 51... f5 {[%clk 0:00:07.9]} 52. gxf5+ {[%clk 0:00:02.6]} 52... Kxf5
{[%clk 0:00:07.6]} 53. Bg3 {[%clk 0:00:03.1]} 53... h5 {[%clk 0:00:06.8]} 54.
Be1 {[%clk 0:00:02.8]} 54... g4 {[%clk 0:00:06.5]} 55. hxg4+ {[%clk 0:00:03.7]}
55... Kxg4 {[%clk 0:00:06.7]} 56. Kb2 {[%clk 0:00:03.8]} 56... Nb4 {[%clk
0:00:03.4]} 57. Bxb4 {[%clk 0:00:03.8]} 57... h4 {[%clk 0:00:03.8]} 58. Bc3
{[%clk 0:00:04.4]} 58... Kf5 {[%clk 0:00:03.6]} 59. Be1 {[%clk 0:00:04.4]} 59...
h3 {[%clk 0:00:02.2]} 60. Bg3 {[%clk 0:00:04.7]} 60... Kg4 {[%clk 0:00:02.3]}
61. Bd6 {[%clk 0:00:04.8]} 61... Kf3 {[%clk 0:00:01.5]} 62. Kc3 {[%clk
0:00:05.4]} 62... a5 {[%clk 0:00:01.8]} 63. Bc7 {[%clk 0:00:04.8]} 63... Kg2
{[%clk 0:00:02]} 64. Kd4 {[%clk 0:00:05.3]} 64... h2 {[%clk 0:00:02.4]} 65. Bxh2
{[%clk 0:00:04.9]} 65... Kxh2 {[%clk 0:00:02.9]} 66. Ke5 {[%clk 0:00:05.8]}
66... Kg3 {[%clk 0:00:03.4]} 67. Kd6 {[%clk 0:00:06.7]} 67... d4 {[%clk
0:00:03.8]} 68. Kxc6 {[%clk 0:00:07.6]} 68... d3 {[%clk 0:00:04.4]} 69. Kb7
{[%clk 0:00:08.5]} 69... d2 {[%clk 0:00:05]} 70. c6 {[%clk 0:00:09.4]} 70...
d1=Q {[%clk 0:00:05.5]} 71. c7 {[%clk 0:00:10.3]} 71... Qb3+ {[%clk 0:00:05.9]}
72. Ka8 {[%clk 0:00:10]} 72... Qc4 {[%clk 0:00:05.9]} 73. Kb8 {[%clk 0:00:09.9]}
73... Qb4+ {[%clk 0:00:06]} 74. Ka8 {[%clk 0:00:10.3]} 74... Qc5 {[%clk
0:00:05.7]} 75. Kb8 {[%clk 0:00:10.8]} 75... Qb6+ {[%clk 0:00:05.6]} 76. Ka8
{[%clk 0:00:11.3]} 76... Qc6+ {[%clk 0:00:05.6]} 77. Kb8 {[%clk 0:00:11.9]}
77... Qxa4 {[%clk 0:00:05.4]} 78. c8=Q {[%clk 0:00:11.4]} 78... Qb5+ {[%clk
0:00:04.9]} 79. Ka8 {[%clk 0:00:11.3]} 79... Kf3 {[%clk 0:00:04.1]} 80. Qf8+
{[%clk 0:00:10.6]} 80... Ke4 {[%clk 0:00:03.7]} 81. Qe7+ {[%clk 0:00:10.5]}
81... Kd4 {[%clk 0:00:03.7]} 82. Qh4+ {[%clk 0:00:10.9]} 82... Kc3 {[%clk
0:00:03.5]} 83. Qg3+ {[%clk 0:00:11.4]} 83... Kb4 {[%clk 0:00:03.5]} 84. Qe1+
{[%clk 0:00:10.8]} 84... Kc4 {[%clk 0:00:03.4]} 85. Qc1+ {[%clk 0:00:11]} 85...
Kd5 {[%clk 0:00:03.1]} 86. Qd2+ {[%clk 0:00:10.6]} 86... Kc6 {[%clk 0:00:03.1]}
87. Qg2+ {[%clk 0:00:09.5]} 87... Qd5 {[%clk 0:00:03.3]} 88. Qc2+ {[%clk
0:00:05.6]} 88... Kb6+ {[%clk 0:00:03.1]} 89. Kb8 {[%clk 0:00:02.3]} 89... Qb7#
{[%clk 0:00:03.1]} 0-1